Workbook

Sheet Sheet 1
A1: 20.109 # | B1: Structure | C1: Chembridge ID | D1: Mol Weight | E1: Mol Formula | F1: Chemical name | G1: Rotational bonds | H1: Stereochemistry | I1: SMILES | J1: Z score_Rep1 | K1: Z score_Rep2 | L1: Z score average | M1: Z score spread
A2: 1 | C2: 7983098 | D2: 436.3 | E2: C20 H19 Cl2 N3 O4 | F2: N-(2,3-dichlorophenyl)-2-[1-(4-methoxybenzoyl)-3-oxo-2-piperazinyl]acetamide | G2: 4 | H2: unknown | I2: N1(C(=O)c2ccc(cc2)OC)C(C(=O)NCC1)CC(=O)Nc1c(c(Cl)ccc1)Cl | J2: 28.50624344 | K2: 29.91456943 | L2: =AVERAGE(J2:K2) -> 29.21040644 | M2: =ABS(J2-K2) -> 1.408325989
A3: 2 | C3: 9019541 | D3: 247.2 | E3: C12 H13 N3 O3 | F3: 3-(4-hydroxyphenyl)-1-methyltetrahydropyrrolo[3,4-c]pyrazole-4,6(1H,5H)-dione | G3: 1 | H3: unknown | I3: C12C(N(NC2c2ccc(cc2)O)C)C(=O)NC1=O | J3: 39.79757483 | K3: 33.24909328 | L3: 36.52333406 | M3: 6.548481542
A4: 3 | C4: 50771468 | D4: 359.4 | E4: C20 H17 N5 O2 | F4: 5-[3-(2-furyl)benzoyl]-2-(1H-pyrazol-4-yl)-4,5,6,7-tetrahydro-1H-imidazo[4,5-c]pyridine | G4: 3 | H4: achiral | I4: c1(nc2c([nH]1)CCN(C(=O)c1cc(c3occc3)ccc1)C2)c1c[nH]nc1 | J4: 30.81440039 | K4: 21.02280981 | L4: 25.9186051 | M4: 9.791590583
A5: 4 | C5: 49596195 | D5: 368.5 | E5: C21 H28 N4 O2 | F5: 4-(6-amino-2-methylpyridin-3-yl)-N-[3-(3-hydroxypiperidin-1-yl)propyl]benzamide | G5: 6 | H5: racemic | I5: n1c(c(ccc1N)c1ccc(C(=O)NCCCN2CC(O)CCC2)cc1)C | J5: 28.82673494 | K5: 25.11894001 | L5: =AVERAGE(J5:K5) -> 26.97283747 | M5: =ABS(J5-K5) -> 3.707794933
A6: 5 | C6: 7975752 | D6: 524.4 | E6: C25 H22 Br N3 O5 | F6: 4-(3-bromo-4-hydroxy-5-methoxyphenyl)-5-(2-furylmethyl)-3-(2-hydroxy-4,5-dimethylphenyl)-4,5-dihydropyrrolo[3,4-c]pyrazol-6(1H)-one | G6: 4 | H6: unknown | I6: c12c(c(n[nH]2)c2cc(c(cc2O)C)C)C(N(C1=O)Cc1occc1)c1cc(c(c(c1)OC)O)Br | J6: 44.86050423 | K6: 30.45434302 | L6: 37.65742362 | M6: 14.40616121
A7: 6 | C7: 73294826 | D7: 403.5 | E7: C19 H25 N5 O3 S | F7: 2-cyclopropyl-N-{[1-({[5-(2-furyl)-4H-1,2,4-triazol-3-yl]thio}acetyl)piperidin-3-yl]methyl}acetamide | G7: 8 | H7: racemic | I7: c1([nH]c(nn1)SCC(=O)N1CC(CNC(=O)CC2CC2)CCC1)c1occc1 | J7: 24.09516994 | K7: 37.79120403 | L7: =AVERAGE(J7:K7) -> 30.94318699 | M7: =ABS(J7-K7) -> 13.69603409
A8: 7 | C8: 5302079 | D8: 257.3 | E8: C16 H19 N O2 | F8: 4-propyl-3a,4,5,9b-tetrahydro-3H-cyclopenta[c]quinoline-8-carboxylic acid | G8: 1 | H8: unknown | I8: c12C3C(C(Nc1ccc(c2)C(=O)O)CCC)CC=C3 | J8: 37.02922958 | K8: 24.79705356 | L8: =AVERAGE(J8:K8) -> 30.91314157 | M8: =ABS(J8-K8) -> 12.23217603
A9: 8 | C9: 95953497 | D9: 382.4 | E9: C17 H19 F N2 O5 S | F9: N'-{[5-(4-fluorophenyl)-2-furyl]methyl}-N-[rac-(3S,4S)-4-hydroxy-1,1-dioxidotetrahydro-3-thienyl]-N-methylurea | G9: 4 | H9: racemic | I9: S1(=O)(=O)C[C@@H](N(C(=O)NCc2oc(cc2)c2ccc(cc2)F)C)[C@@H](C1)O | J9: 28.63653869 | K9: 22.60549873 | L9: =AVERAGE(J9:K9) -> 25.62101871 | M9: =ABS(J9-K9) -> 6.031039962
A10: 9 | C10: 43676841 | D10: 337.3 | E10: C18 H15 N3 O4 | F10: 5-[4-(2-furyl)benzoyl]-4,5,6,7-tetrahydro-1H-pyrazolo[4,3-c]pyridine-3-carboxylic acid | G10: 3 | H10: achiral | I10: c12c(n[nH]c2CCN(C1)C(=O)c1ccc(c2occc2)cc1)C(=O)O | J10: 37.76580717 | K10: 58.94896556 | L10: 48.35738637 | M10: 21.18315839
A11: 10 | C11: 7990903 | D11: 275.3 | E11: C14 H13 N O3 S | F11: 3-methyl-4-oxo-6-(2-thienyl)-4,5,6,7-tetrahydro-1H-indole-2-carboxylic acid | G11: 2 | H11: unknown | I11: c12c(c([nH]c1CC(c1sccc1)CC2=O)C(=O)O)C | J11: 39.79757483 | K11: 33.24909328 | L11: =AVERAGE(J11:K11) -> 36.52333406 | M11: =ABS(J11-K11) -> 6.548481542
A12: 11 | C12: 5655222 | D12: 292.4 | E12: C19 H20 N2 O | F12: 2,4-bis[(4-methylphenyl)amino]-2-cyclopenten-1-one | G12: 4 | H12: unknown | I12: C1(=CC(CC1=O)Nc1ccc(cc1)C)Nc1ccc(cc1)C | J12: 38.12652346 | K12: 33.38042361 | L12: =AVERAGE(J12:K12) -> 35.75347353 | M12: =ABS(J12-K12) -> 4.746099848
A13: 12 | C13: 43707503 | D13: 450.6 | E13: C22 H34 N4 O4 S | F13: 1-(2-hydroxy-3-{2-methoxy-4-[({2-[(1-methyl-1H-imidazol-2-yl)thio]ethyl}amino)methyl]phenoxy}propyl)-4-piperidinol | G13: 11 | H13: racemic | I13: c1(n(ccn1)C)SCCNCc1cc(c(OCC(CN2CCC(CC2)O)O)cc1)OC | J13: 44.29932651 | K13: 20.11574332 | L13: 32.20753492 | M13: 24.18358319
A14: 13 | C14: 7965443 | D14: 343.8 | E14: C19 H15 Cl F N O2 | F14: 4-(2-chloro-6-fluorophenyl)-3a,4,5,9b-tetrahydro-3H-cyclopenta[c]quinoline-8-carboxylic acid | G14: 2 | H14: unknown | I14: C1(Nc2c(C3C1CC=C3)cc(C(=O)O)cc2)c1c(Cl)cccc1F | J14: 36.98866009 | K14: 55.51107288 | L14: =AVERAGE(J14:K14) -> 46.24986649 | M14: =ABS(J14-K14) -> 18.5224128
A15: 14 | C15: 51963936 | D15: 376.5 | E15: C21 H24 N6 O | F15: (2S,4S)-4-amino-N-methyl-1-[(1-phenyl-3-pyridin-4-yl-1H-pyrazol-4-yl)methyl]pyrrolidine-2-carboxamide | G15: 5 | H15: single enantiomer | I15: c1(c(nn(c1)c1ccccc1)c1ccncc1)CN1[C@H](C(=O)NC)C[C@@H](C1)N | J15: 33.68631942 | K15: 19.92949141 | L15: =AVERAGE(J15:K15) -> 26.80790541 | M15: =ABS(J15-K15) -> 13.75682802
